Cogmind - Beta 13 @@@ ROGUE MODE // 2024.05.19 @ 16:13:01 Player: Waste Result: Destroyed by H-71 Marshal with Heavy Mass Driver Performance ------------- Evolutions (6) 3000 Regions Visited (24) 4800 Robots Destroyed (358) 1790 Value Destroyed (13367) 13367 Prototype IDs (60) 1200 Alien Tech Used (0) 0 Bonus (4401) 4401 TOTAL SCORE: 28558 Bonus ------- High Alert Combat Kills 1237 Follower Combat Kills 517 Aligned with FarCom 300 Met Data Miner 300 Met Warlord at Base 500 MAIN.C Attacked Warlord 500 Warlord Defense Kills 1078 Friendly Fire -31 Cogmind --------- Core Integrity 0/1150 Matter 122/300 Energy 673/700 System Corruption 6% Temperature Critical (790) Movement Core (2050) Ox40 Location -4/Factory Parts ------- > --- POWER (2) -------- Vortex Chain Reactor > --- PROPULSION (4) --- Armored Medium Treads > --- UTILITY (9) ------ Huge Storage Unit Experimental Targeting Computer Experimental Target Analyzer Experimental Core Analyzer Improved Transmission Jammer > --- WEAPON (4) ------- Compact Linear Accelerator > --- INVENTORY (25) --- Reinforced Fission Core Matter Compressor (250) Advanced Sensor Array Advanced Terrain Scanner Advanced Weapon Cycler Experimental Phase Shifter Improved Weapon Shielding Improved Medium Armor Plating Improved Medium Armor Plating Heavy Reactive Plating Advanced Remote Shield Ghost Barrier Long-range Tractor Beam Drone Bay (2/2) HERF Cannon 8R-AWN's Boregun 8R-AWN's Boregun Heavy Shock Bomb Launcher Precision Rocket Launcher Longsword +1 Peak State ------------ > --- POWER ------------ Reinforced Fission Core Antimatter Reactor > --- PROPULSION ------- Armored Medium Treads Armored Medium Treads Heavy Siege Treads > --- UTILITY ---------- Huge Storage Unit Experimental Signal Interpreter Advanced Terrain Scan Processor Experimental Targeting Computer Experimental Target Analyzer Experimental Core Analyzer Experimental Phase Shifter Centrium Light Armor Plating Advanced Remote Shield > --- WEAPON ----------- KE Penetrator KE Penetrator Improved KE Penetrator Railgun > --- INVENTORY -------- Vortex Chain Reactor Improved Medium Treads Advanced Cooling System Matter Compressor Improved Sensor Array Advanced Terrain Scanner Advanced Weapon Cycler Improved Transmission Jammer Improved Weapon Shielding Improved Medium Armor Plating Improved Medium Armor Plating Heavy Reactive Plating Advanced Shield Generator Ghost Barrier Long-range Tractor Beam Drone Bay 8R-AWN's Boregun 8R-AWN's Boregun Compact Linear Accelerator Heavy Shock Bomb Launcher Long-range Missile Launcher Precision Rocket Launcher Longsword +1 [Rating: 146] Favorites ----------- Power Cooled Ion Engine Engine Cooled Ion Engine Power Core Light Nuclear Core Reactor Antimatter Reactor Propulsion Advanced Myomer Leg Treads Armored Medium Treads Leg Advanced Myomer Leg Utility Huge Storage Unit Device Improved Sensor Array Storage Huge Storage Unit Processor Experimental Targeting Computer Hackware Advanced Hacking Suite Protection Layered Light Armor Plating Weapon Precision Assault Rifle Energy Gun Particle Gun Energy Cannon Advanced Beam Cannon Ballistic Gun Precision Assault Rifle Ballistic Cannon AWS/Autocannon Launcher Long-range Missile Launcher Slashing Weapon Longsword +1 Piercing Weapon Kinetic Spear Build | -11 -10 -10 -9 -9 -9 -8 -8 -8 -7 -7 -7 -7 -6 -6 -6 -6 -6 -5 -5 -5 -5 -5 -4 -4 ------- Run | Yrd Mat Min Mat Min Exi Min Mat Sto Fac Low Low Zio Pro Fac Low Low Dat Pro Fac Upp Upp War Pro Fac Slots Evolved 12 | . . . 2 . . . 2 . 2 . . . . 2 . . . . 2 . . . . 2 Power 1 | . . . . . . . . . . . . . . . . . . . . . . . . 1 Propulsion 2 | . . . . . . . 2 . . . . . . . . . . . . . . . . . Utility 7 | . . . . . . . . . 2 . . . . 2 . . . . 2 . . . . 1 Weapon 2 | . . . 2 . . . . . . . . . . . . . . . . . . . . . Parts Attached 276 | . 5 4 13 1 14 4 5 10 26 5 7 8 4 13 3 5 . 6 50 7 5 20 2 59 Power 16 | . . 1 2 . 1 1 . 1 1 . . . 1 . . . . 1 2 . . 1 . 4 Engine 8 | . . . 1 . 1 1 . 1 1 . . . 1 . . . . 1 1 . . . . . Core 5 | . . 1 1 . . . . . . . . . . . . . . . . . . . . 3 Reactor 3 | . . . . . . . . . . . . . . . . . . . 1 . . 1 . 1 Propulsion 34 | . 2 1 3 . 2 . 3 4 8 . 1 1 . 1 . 1 . . 5 . . . . 2 Treads 22 | . . . 3 . 2 . 3 4 5 . . . . . . . . . 3 . . . . 2 Leg 12 | . 2 1 . . . . . . 3 . 1 1 . 1 . 1 . . 2 . . . . . Wheel . | . . . . . . . . . . . . . . . . . . . . . . . . . Hover . | . . . . . . . . . . . . . . . . . . . . . . . . . Flight . | . . . . . . . . . . . . . . . . . . . . . . . . . Utility 100 | . 1 2 . 1 2 . 1 . 7 2 . . . 4 2 . . 2 24 2 3 14 . 33 Device 66 | . . 1 . 1 1 . . . 6 1 . . . 2 . . . . 13 2 2 11 . 26 Storage 7 | . 1 1 . . . . 1 . . . . . . 1 . . . . 3 . . . . . Processor 7 | . . . . . 1 . . . 1 . . . . . . . . . 3 . . 1 . 1 Hackware 1 | . . . . . . . . . . . . . . 1 . . . . . . . . . . Protection 19 | . . . . . . . . . . 1 . . . . 2 . . 2 5 . 1 2 . 6 Artifact . | . . . . . . . . . . . . . . . . . . . . . . . . . Weapon 126 | . 2 . 8 . 9 3 1 5 10 3 6 7 3 8 1 4 . 3 19 5 2 5 2 20 Energy Gun 3 | . . . 3 . . . . . . . . . . . . . . . . . . . . . Energy Cannon 14 | . 1 . . . . . . 1 3 1 4 3 . 1 . . . . . . . . . . Ballistic Gun 62 | . 1 . 5 . 7 3 . 3 6 . . 3 . 2 . . . 3 11 2 2 2 2 10 Ballistic Cannon 4 | . . . . . . . . . . . . . . 1 . 1 . . . . . 1 . 1 Launcher 29 | . . . . . 1 . 1 1 1 2 2 1 1 2 . 2 . . 4 3 . 1 . 7 Special Weapon . | . . . . . . . . . . . . . . . . . . . . . . . . . Impact Weapon . | . . . . . . . . . . . . . . . . . . . . . . . . . Slashing Weapon 13 | . . . . . 1 . . . . . . . 2 2 1 1 . . 3 . . 1 . 2 Piercing Weapon 1 | . . . . . . . . . . . . . . . . . . . 1 . . . . . Special Melee Weapon . | . . . . . . . . . . . . . . . . . . . . . . . . . Unidentified Prototypes 22 | . . . 2 . 3 . . 2 5 . . . . 1 . . . . 4 . . 5 . . Parts Lost 40 | . . . 4 . 2 . . . 2 . . . . 3 1 3 . 3 3 . 1 . . 18 Power 4 | . . . . . . . . . . . . . . . . . . 1 . . . . . 3 Propulsion 10 | . . . 1 . 1 . . . 1 . . . . 1 . 1 . . 1 . . . . 4 Utility 11 | . . . . . . . . . . . . . . . 1 2 . 1 2 . . . . 5 Weapon 15 | . . . 3 . 1 . . . 1 . . . . 2 . . . 1 . . 1 . . 6 Highest Loss Streak 11 | . . . 2 . 2 . . . 1 . . . . 3 1 3 . 3 2 . 1 . . 11 To Critical Strikes 2 | . . . . . 2 . . . . . . . . . . . . . . . . . . . Average Slot Usage (%) 94 | . 99 91 83 100 99 100 100 100 99 100 100 98 100 88 85 80 73 82 93 94 93 93 94 92 Engine 6 | . 14 8 3 11 11 11 9 9 6 7 7 7 7 6 6 6 6 5 4 . . . . . Core 1 | . . 5 7 . . . . . . . . . . . . . . . . . . . . 6 Treads 12 | . . . 4 22 22 22 36 36 28 7 6 . . . . . . . 10 17 17 17 17 14 Leg 11 | . 28 28 17 . . . . . 1 23 23 30 30 23 26 24 26 26 8 . . . . . Device 5 | . . 4 11 11 5 . . . 7 7 7 7 7 13 1 . . . 5 5 5 7 11 9 Storage 8 | . 27 15 11 11 11 11 9 9 7 7 7 7 7 6 6 6 6 6 5 5 5 5 5 5 Processor 12 | . . . . . 5 11 9 9 15 15 15 15 15 13 13 13 13 13 20 23 23 23 23 25 Hackware 1 | . . . . . . . . . . . . . . 4 6 6 6 6 5 5 5 2 . . Protection 1 | . . . . . . . . . . . . . . . 11 8 . 3 6 5 5 4 5 5 Energy Gun 2 | . 11 . 15 22 4 . . . . . . . . . . . . . . . . . . . Energy Cannon 4 | . 11 14 5 . . . . 2 13 14 14 12 . . . . . . . . . . . . Ballistic Gun 16 | . 4 14 7 22 31 33 27 26 15 15 15 16 23 11 . . . 8 19 19 11 18 11 16 Launcher 1 | . . . . . . . 2 6 . . . . 6 . . 2 6 6 . 2 10 . 5 . Slashing Weapon 1 | . . . . . 7 11 6 . . . . . . 4 6 3 . . 1 . . 3 . 1 Naked Turns . | . . . . . . . . . . . . . . . . . . . . . . . . . Heaviest Build 171 | 12 53 91 100 100 107 105 103 104 113 109 109 109 113 162 171 171 160 164 126 128 128 136 136 156 Greatest Support 124 | 20 20 20 40 40 46 46 92 89 91 80 90 100 100 100 96 96 81 81 124 124 124 124 124 124 Greatest Overweight (x) 4 | . 2 4 4 2 2 2 1 1 2 1 1 1 1 1 1 2 1 2 1 1 1 1 1 2 Average Overweight (x) 1 | . 1 3 3 2 2 2 1 1 1 1 1 . 1 1 1 1 1 1 . . . . 1 1 Largest Inventory Capacity 25 | . 20 25 25 25 25 25 25 25 25 25 25 25 25 25 25 25 25 25 25 25 25 25 25 25 Average Capacity 24 | . 19 24 25 25 25 25 25 25 25 25 25 25 25 25 25 25 25 25 22 25 25 25 25 25 Most Carried 25 | . 20 24 25 25 25 25 25 25 25 25 25 25 25 25 25 25 24 24 25 25 25 25 25 25 Average Carried 23 | . 15 22 24 24 22 25 24 24 24 24 25 24 25 23 24 24 24 22 21 23 24 24 25 24 Final Capacity 25 | 8 20 25 25 25 25 25 25 25 25 25 25 25 25 25 25 25 25 25 25 25 25 25 25 25 Final Carried 25 | 6 20 24 24 25 25 25 25 25 25 25 25 25 25 25 25 24 24 19 24 25 24 25 25 21 Class Distribution -------------------- 31% | Gunner 24% | Scavenger-Skirmisher 18% | Scavenger-Gunner 10% | Mutant 7% | Scavenger-Mutant 3% | Scavenger-Assassin Dominant Class ---------------- Mutant | -10/Materials Mutant | -10/Mines Scavenger-Mutant | -9/Materials Scavenger-Gunner | -9/Mines Gunner | -9/Exiles Gunner | -8/Mines Gunner | -8/Materials Scavenger-Gunner | -8/Storage Scavenger-Skirmisher | -7/Factory Scavenger-Skirmisher | -7/Lower Caves Scavenger-Skirmisher | -7/Lower Caves Scavenger-Skirmisher | -7/Zion Scavenger-Skirmisher | -6/Proximity Caves Scavenger-Skirmisher | -6/Factory Tank | -6/Lower Caves Tank | -6/Lower Caves Gunner | -6/Data Miner Gunner | -5/Proximity Caves Gunner | -5/Factory Gunner | -5/Upper Caves Gunner | -5/Upper Caves Commander-Gunner | -5/Warlord Scavenger-Gunner | -4/Proximity Caves Scavenger-Skirmisher | -4/Factory Resources | -11 -10 -10 -9 -9 -9 -8 -8 -8 -7 -7 -7 -7 -6 -6 -6 -6 -6 -5 -5 -5 -5 -5 -4 -4 ----------- Run | Yrd Mat Min Mat Min Exi Min Mat Sto Fac Low Low Zio Pro Fac Low Low Dat Pro Fac Upp Upp War Pro Fac Matter Collected 8796 | 200 77 64 383 34 494 296 430 455 1080 122 161 48 165 411 55 110 . 135 1975 268 65 443 62 1263 Remotely 1441 | . . . . . . . . . . . . . . . . . . . 327 115 . 329 . 670 Salvage Created 14324 | . 426 104 1304 83 315 467 997 775 2124 47 339 . 340 1232 341 279 . 141 1821 92 54 503 . 2540 Parts 807 | . 38 8 78 5 62 27 56 48 90 5 11 . 7 72 14 15 . 8 87 5 8 27 1 135 Haulers Intercepted 14 | . 2 . 4 . . . . 3 2 . . . . 2 . . . . . . . . . 1 Recyclers Shooed 18 | . . . 3 . . . . 2 1 . . . . 8 . . . . 3 . . . . 1 Parts Field Recycled . | . . . . . . . . . . . . . . . . . . . . . . . . . Retrieved Matter . | . . . . . . . . . . . . . . . . . . . . . . . . . Parts Self-Destructed 61 | . . . . . . . . . . 3 9 . 5 . 14 7 . 4 . 3 9 . 7 . Prevented 1 | . . . . . . . . . . . . . . . . . . . . . . . 1 . Kills | -11 -10 -10 -9 -9 -9 -8 -8 -8 -7 -7 -7 -7 -6 -6 -6 -6 -6 -5 -5 -5 -5 -5 -4 -4 ------- Run | Yrd Mat Min Mat Min Exi Min Mat Sto Fac Low Low Zio Pro Fac Low Low Dat Pro Fac Upp Upp War Pro Fac Combat Hostiles Destroyed 263 | . 9 4 22 2 5 7 18 11 33 4 8 . 9 11 11 13 . 7 31 4 7 8 1 38 Melee 10 | . . . . . . 2 . . . . . . . 2 4 . . . 2 . . . . . Guns 143 | . 5 2 21 2 1 5 16 9 19 . 2 . 2 5 . . . . 23 2 1 8 . 20 Cannons 36 | . 3 2 1 . . . . 2 10 . 1 . . 4 7 5 . . . . . . . 1 AOE 70 | . . . . . 4 . 2 . 2 4 5 . 7 . . 8 . 7 6 2 6 . 1 16 Classes Destroyed 28 | . 6 . 4 . 3 3 . 1 1 . . . . . 1 1 . . 1 . . 2 1 4 Worker 24 | . . . 3 . . 2 2 2 1 . . . . 7 . . . . 3 . . . . 4 Builder 10 | . 1 . . . . . 1 . . . . . . 7 . . . . 1 . . . . . Tunneler 6 | . . . 1 . . 1 . . 1 . . . . . . . . . 1 . . . . 2 Hauler 14 | . 2 . 4 . . . . 3 2 . . . . 2 . . . . . . . . . 1 Recycler 14 | . . . 3 . . 1 3 1 3 . . . . 2 . . . . . . . . . 1 Carrier 1 | . . . . . . . . . . . . . . . . . . . . . . . . 1 Mechanic 2 | . . . . . . . . 1 . . . . . . . . . . . . . . . 1 Operator 4 | . 1 . 1 . . . . . . . . . . 1 . . . . 1 . . . . . Drone 1 | . . . . . . . . . . . . . . . . . . . . . . . 1 . Turret 1 | . . . . . 1 . . . . . . . . . . . . . . . . . . . Watcher 19 | . 3 . 1 . . . 2 2 4 . . . . 1 . . . . 2 . . . . 4 Swarmer 62 | . 6 3 6 . . . 8 2 9 4 . . . 3 4 2 . 4 . 2 4 1 . 4 Saboteur 1 | . . . . . . . . . . . . . . . . . . . . . . . . 1 Grunt 103 | . 3 1 10 2 . 4 8 4 14 . 7 . 8 5 4 4 . 3 16 . . 2 . 8 Brawler 4 | . . . . . . 1 . . . . 1 . . . . 2 . . . . . . . . Duelist 8 | . . . . . . 1 . . 2 . . . . . . 2 . . 3 . . . . . Protector 1 | . . . . . . . . . . . . . . . . . . . 1 . . . . . Sentry 23 | . . . 6 . . . 2 5 3 . . . . . . 1 . . 3 1 . . . 2 Specialist 4 | . . . . . . . . . . . . . . . . . . . . . . 1 . 3 Hunter 15 | . . . . . . 1 . . . . . . 1 . 2 . . . 4 . . . . 7 Programmer 24 | . . . . . . . . . 5 . . . . 3 . . . . 4 . . 3 . 9 Heavy 2 | . . . . . . . . . . . . . . . . . . . . . . . . 2 Behemoth 1 | . . . . . . . . . . . . . . . 1 . . . . . . . . . Striker 2 | . . . . . . . . . . . . . . . . . . . . . . . . 2 Executioner 1 | . . . . . . . . . . . . . . . . . . . . . . 1 . . Zionite 2 | . . . . . 2 . . . . . . . . . . . . . . . . . . . Master Thief 6 | . . . . . . . . . . . . . . . . 2 . . . 1 3 . . . Assembled 4 | . . . . . 4 . . . . . . . . . . . . . . . . . . . Best Kill Streak 24 | . 3 3 6 2 4 5 6 4 5 4 3 . 4 9 4 9 . 4 8 3 7 7 1 24 Combat Bots Only 20 | . 3 3 5 2 4 3 5 4 5 4 3 . 4 4 4 9 . 4 5 3 7 7 1 20 Max Kills in Single Turn 12 | . 1 1 2 1 2 1 2 2 3 4 3 . 3 1 1 4 . 4 3 2 3 2 1 12 Gunslinging 2 | . . . 1 . . . 1 1 . . . . . . . . . . 1 . . . . 2 Exploded 8 | . . . . . 2 . 2 . 2 4 3 . 3 . . 3 . 4 3 2 3 . 1 8 Melee 1 | . . . . . . 1 . . . . . . . 1 1 . . . 1 . . . . . Uniques/NPCs Destroyed 4 | . . . . . 4 . . . . . . . . . . . . . . . . . . . 8R-AWN (-9/Exiles) EX-HEX (-9/Exiles) EX-DEC (-9/Exiles) EX-BIN (-9/Exiles) Combat | -11 -10 -10 -9 -9 -9 -8 -8 -8 -7 -7 -7 -7 -6 -6 -6 -6 -6 -5 -5 -5 -5 -5 -4 -4 -------- Run | Yrd Mat Min Mat Min Exi Min Mat Sto Fac Low Low Zio Pro Fac Low Low Dat Pro Fac Upp Upp War Pro Fac Hostile Shots Fired 1085 | . 23 15 93 4 45 19 54 57 168 8 13 . 20 25 58 63 . 52 109 12 8 15 8 216 Missed 337 | . 5 4 24 3 11 3 16 25 62 2 7 . 5 10 22 16 . 15 25 5 1 7 2 67 Damage Taken 14832 | . 161 104 773 12 616 245 469 515 1413 127 105 . 321 258 689 1077 . 559 1542 327 294 105 91 5029 Core 2092 | . 24 47 95 12 71 38 18 35 88 . 22 . 4 63 80 47 . . 105 40 64 16 17 1206 Absorbed by Shields 330 | . . . . . . . . . . . . . . . . . . . 154 . . 31 26 119 Reduced by Siege Mode 93 | . . . . . . . . . . . . . . . . . . . 38 . . . . 55 Ignored by Resistances 14 | . . . . . . . . . . . . . . . . . . 14 . . . . . . Regen/Repaired (Parts) 342 | . . . . . . . . . 224 . . . . . . . . . . . . 118 . . Core Remaining (%) 77 | 100 . 71 . . . 46 . 90 . . . . 83 . . . . 77 . . . . 75 . Volleys Fired 533 | . 25 8 77 4 36 13 38 42 81 1 9 . 8 33 . 4 . 4 58 10 6 19 2 55 Largest 4 | . 2 2 4 4 2 3 3 4 4 1 4 . 3 4 . 1 . 1 4 4 3 1 3 4 Hottest 193 | . 110 80 181 164 60 74 74 142 193 45 189 . 84 149 . 45 . 45 129 142 119 30 138 171 Shots Fired 1540 | . 50 16 222 16 67 39 112 129 231 1 32 . 12 78 34 29 . 4 226 25 10 19 4 184 Gun 1253 | . 33 8 198 16 64 39 111 120 162 . 16 . 6 59 . . . . 224 17 1 19 2 158 Cannon 231 | . 17 8 24 . . . . 7 69 . 14 . . 19 34 25 . . . . . . 1 13 Launcher 56 | . . . . . 3 . 1 2 . 1 2 . 6 . . 4 . 4 2 8 9 . 1 13 Special . | . . . . . . . . . . . . . . . . . . . . . . . . . Kinetic 1196 | . 9 8 90 8 64 39 111 120 162 . 16 . 6 69 34 25 . . 224 17 1 19 3 171 Thermal 288 | . 41 8 132 8 . . . 7 69 . 14 . . 9 . . . . . . . . . . Explosive 51 | . . . . . 3 . 1 2 . 1 2 . 6 . . 4 . 4 2 8 9 . 1 8 Electromagnetic 5 | . . . . . . . . . . . . . . . . . . . . . . . . 5 Robot Hit Streak 48 | . 8 3 14 8 11 15 16 28 46 2 12 . 7 48 13 12 . 8 24 5 7 7 4 23 Robot Miss Streak 5 | . 3 2 4 2 5 2 3 2 4 1 2 . 4 1 2 3 . 3 3 3 1 3 2 3 Penetration Max 2 | . . . . . 1 1 1 1 2 . . . . . . . . . 1 . . 2 . 1 Secondary Targets 19 | . . . 4 1 1 1 3 1 . . . . . 1 . . . . 1 . . . . 6 Max Gunslinging Chain 2 | . . . 1 1 1 1 1 1 . . . . . 1 . . . . 1 . . . . 2 Autonomous 69 | . . . . . . . . . . . . . . 10 34 25 . . . . . . . . Shots Hit Robots 1061 | . 29 8 129 10 53 35 76 91 146 1 21 . 9 83 30 27 . 4 157 12 4 14 2 120 Core Hits 674 | . 17 4 50 4 26 19 38 29 71 6 22 . 34 36 11 49 . 24 100 8 11 12 3 100 Critical Kills 39 | . 1 . 1 . 2 . 1 . 10 . . . . . . . . . 9 1 . 7 . 7 Critical Parts Destroyed 54 | . . . . . 9 . . . 19 . . . . 1 . . . . 13 . . 4 . 8 Critical Strikes 112 | . 1 . 2 . 18 . 1 . 32 . . . . 1 5 . . . 24 1 . 11 . 16 Burn 1 | . . . 1 . . . . . . . . . . . . . . . . . . . . . Meltdown 3 | . 1 . . . . . . . 2 . . . . . . . . . . . . . . . Destroy 97 | . . . 1 . 14 . 1 . 30 . . . . 1 . . . . 22 1 . 11 . 16 Blast 5 | . . . . . . . . . . . . . . . 5 . . . . . . . . . Sever 6 | . . . . . 4 . . . . . . . . . . . . . 2 . . . . . Melee Attacks 102 | . . . . . 18 5 . . . . . . 2 37 7 . . . 17 . . 5 . 11 Impact . | . . . . . . . . . . . . . . . . . . . . . . . . . Slashing 102 | . . . . . 18 5 . . . . . . 2 37 7 . . . 17 . . 5 . 11 Piercing . | . . . . . . . . . . . . . . . . . . . . . . . . . Sneak Attacks 21 | . . . . . . 2 . . . . . . . 18 . . . . 1 . . . . . Combat Hostiles . | . . . . . . . . . . . . . . . . . . . . . . . . . Follow-up Attacks . | . . . . . . . . . . . . . . . . . . . . . . . . . Damage Inflicted 38383 | . 438 129 1903 173 1722 782 1462 1652 3734 236 741 . 1043 3553 1925 2886 . 797 5292 923 770 429 145 7648 Guns 16506 | . 204 36 1637 142 671 436 1293 1505 2025 . 174 . 78 1025 . . . . 3432 198 27 429 42 3152 Cannons 6379 | . 232 93 253 . . . . 104 1340 . 241 . . 657 1676 1484 . . . . . . 33 266 Explosions 11628 | . . . . . 238 . 147 31 325 236 326 . 965 . . 1402 . 797 1393 725 743 . 70 4230 Melee 3721 | . . . . . 813 321 . . . . . . . 1871 249 . . . 467 . . . . . Ramming 149 | . 2 . 13 31 . 25 22 12 44 . . . . . . . . . . . . . . . Kinetic 19284 | . 76 36 557 67 671 436 1293 1505 2025 . 174 . 78 1627 1676 1484 . . 3432 198 27 429 75 3418 Thermal 6423 | . 360 93 1333 75 . . . 104 1366 . 241 . . 55 . . . . . . . . . 2796 Explosive 8312 | . . . . . 238 . 147 31 299 236 326 . 965 . . 1402 . 797 1393 725 743 . 70 940 Electromagnetic 494 | . . . . . . . . . . . . . . . . . . . . . . . . 494 Impact . | . . . . . . . . . . . . . . . . . . . . . . . . . Slashing 3721 | . . . . . 813 321 . . . . . . . 1871 249 . . . 467 . . . . . Piercing . | . . . . . . . . . . . . . . . . . . . . . . . . . Highest Corruption 6 | . . . . . . . . . 4 4 4 4 . 3 2 . . . 5 . . 1 1 6 Average Corruption 3 | . . . . . . . . . 2 4 4 4 . 1 1 . . . 3 . . 1 1 4 Corruption Purged 9 | . . . . . . . . . . . . . . 2 2 . . . 5 . . . . . Corruption Blocked . | . . . . . . . . . . . . . . . . . . . . . . . . . Effects 95 | . . . . . . . . . 7 18 16 1 . 3 . . . . 35 . . 1 5 9 Message Errors 27 | . . . . . . . . . 1 7 3 . . 1 . . . . 10 . . . 2 3 Matter Fused 14 | . . . . . . . . . 2 5 1 1 . . . . . . 5 . . . . . Heat Flow Errors 9 | . . . . . . . . . . 2 2 . . . . . . . 3 . . . . 2 Energy Discharges 13 | . . . . . . . . . 2 1 3 . . 1 . . . . 3 . . . 1 2 Parts Rejected 1 | . . . . . . . . . . . 1 . . . . . . . . . . . . . Parts Fused 1 | . . . . . . . . . . . 1 . . . . . . . . . . . . . Data Loss (minor) 16 | . . . . . . . . . . 3 . . . 1 . . . . 8 . . . 2 2 Data Loss (major) 6 | . . . . . . . . . 1 . 2 . . . . . . . 3 . . . . . Misfires 4 | . . . . . . . . . . . 2 . . . . . . . 2 . . . . . Alerts 2 | . . . . . . . . . . . 1 . . . . . . . . . . 1 . . Weapon Failures 2 | . . . . . . . . . 1 . . . . . . . . . 1 . . . . . Overload Shots . | . . . . . . . . . . . . . . . . . . . . . . . . . Overflow Damage 1587 | . . . . . . . . 12 61 . . . . 730 156 157 . 2 . 153 30 . 5 281 Projectiles 525 | . . . . . . . . 11 54 . . . . 212 104 144 . . . . . . . . Explosions 492 | . . . . . . . . 1 7 . . . . . . 13 . 2 . 153 30 . 5 281 Melee 570 | . . . . . . . . . . . . . . 518 52 . . . . . . . . . Knockbacks 7 | . . . . . . . . . . . . . . . 5 1 . . . . . . 1 . Impact . | . . . . . . . . . . . . . . . . . . . . . . . . . Kinetic 7 | . . . . . . . . . . . . . . . 5 1 . . . . . . 1 . Secondary . | . . . . . . . . . . . . . . . . . . . . . . . . . Self-Inflicted Damage 1122 | . . . . . 12 . . 33 . 38 17 . 41 . . 212 . 32 134 262 193 . . 148 Shots 31 | . . . . . 1 . . 1 . 2 1 . 3 . . 8 . 2 2 4 4 . . 3 Rammed 9 | . . . 1 2 . 3 . 1 2 . . . . . . . . . . . . . . . Targets Rammed 18 | . 1 . 2 2 . 4 3 3 3 . . . . . . . . . . . . . . . Kicked 3 | . 1 . 1 . . . . . 1 . . . . . . . . . . . . . . . Crushed 6 | . . . . . . 1 3 2 . . . . . . . . . . . . . . . . Highest Temperature 889 | . 234 108 183 150 7 87 68 203 192 168 284 . 7 129 10 9 . 8 391 137 30 . 51 889 Average Temperature 77 | . 64 50 46 75 4 19 16 39 52 91 111 . 4 45 10 9 . 6 102 64 15 . 31 159 Received Heat Transfer 2861 | . 18 27 219 6 9 45 198 243 306 . 72 . 81 54 57 111 . 120 381 . . 20 . 894 Effects 15 | . . . . . . . . . . . . . . . . . . . . . . . . 15 Shutdowns 2 | . . . . . . . . . . . . . . . . . . . . . . . . 2 Interference 2 | . . . . . . . . . . . . . . . . . . . . . . . . 2 Short Circuit 1 | . . . . . . . . . . . . . . . . . . . . . . . . 1 Damage (minor) 3 | . . . . . . . . . . . . . . . . . . . . . . . . 3 Damage (major) 3 | . . . . . . . . . . . . . . . . . . . . . . . . 3 Damage (core) 4 | . . . . . . . . . . . . . . . . . . . . . . . . 4 Siege Activations 11 | . . . . . . . . . . . . . . . . . . . 3 . 1 . . 7 Total Turns 151 | . . . . . . . . . . . . . . . . . . . 51 . 7 . . 93 Longest Duration 38 | . . . . . . . . . . . . . . . . . . . 27 . 7 . . 38 Robots Corrupted 1 | . . . . . . . . . . . . . . . . . . . . . . . . 1 Combat Hostiles 1 | . . . . . . . . . . . . . . . . . . . . . . . . 1 Parts Fried 1 | . . . . . . . . . . . . . . . . . . . . . . . . 1 Impact Corruptions . | . . . . . . . . . . . . . . . . . . . . . . . . . Robots Melted 3 | . 1 . . . . . . . 2 . . . . . . . . . . . . . . . Combat Hostiles 3 | . 1 . . . . . . . 2 . . . . . . . . . . . . . . . Parts Melted 24 | . 5 1 6 . . . . . 11 . 1 . . . . . . . . . . . . . Heat Transferred 8881 | . 851 185 3182 185 . . . 185 2048 . 370 . . 74 . . . . . . . . . 1801 Parts Sabotaged . | . . . . . . . . . . . . . . . . . . . . . . . . . Parts Stolen 6 | . . . . . . . . . . . . . . . . 2 . . . 3 1 . . . Parts Stripped . | . . . . . . . . . . . . . . . . . . . . . . . . . Power Chain Reactions 4 | . . . . . . . . . . . . . . . . . . . . . . . . 4 Alert | -11 -10 -10 -9 -9 -9 -8 -8 -8 -7 -7 -7 -7 -6 -6 -6 -6 -6 -5 -5 -5 -5 -5 -4 -4 ------- Run | Yrd Mat Min Mat Min Exi Min Mat Sto Fac Low Low Zio Pro Fac Low Low Dat Pro Fac Upp Upp War Pro Fac Peak Influence 1399 | . 147 70 371 194 . 120 369 337 628 . . . . 214 . . . . 776 . . . . 1399 Initial 450 | . . . . 144 . . 27 92 21 . . . . . . . . . . . . . . 450 Average 188 | . 31 24 92 189 . 43 166 186 253 . . . . 60 . . . . 299 . . . . 566 Maximum Alert Level 4 | . . . 1 . . . 1 1 2 . . . . 1 . . . . 3 . . . . 4 Low Security (%) 70 | . 100 100 81 100 . 100 67 55 60 . . . . 94 . . . . 54 . . . . . Level 1 15 | . . . 18 . . . 32 44 5 . . . . 5 . . . . 20 . . . . 52 Level 2 9 | . . . . . . . . . 33 . . . . . . . . . 10 . . . . 24 Level 3 2 | . . . . . . . . . . . . . . . . . . . 14 . . . . 2 Level 4 1 | . . . . . . . . . . . . . . . . . . . . . . . . 19 Level 5 . | . . . . . . . . . . . . . . . . . . . . . . . . . High Security . | . . . . . . . . . . . . . . . . . . . . . . . . . Max Security . | . . . . . . . . . . . . . . . . . . . . . . . . . Squads Dispatched 40 | . . . 3 . . . 1 . 16 . . . . 5 . 1 . . 7 . . . . 7 Investigation 7 | . . . . . . . . . 2 . . . . 1 . . . . 3 . . . . 1 Extermination 13 | . . . . . . . . . 5 . . . . 3 . . . . 2 . . . . 3 Reinforcement 9 | . . . 3 . . . 1 . 2 . . . . 1 . . . . 1 . . . . 1 Assault 5 | . . . . . . . . . 1 . . . . . . 1 . . 1 . . . . 2 Garrison 6 | . . . . . . . . . 6 . . . . . . . . . . . . . . . Intercept . | . . . . . . . . . . . . . . . . . . . . . . . . . Searches Triggered 1 | . . . . . . . . . . . . . . . . . . . . . . . . 1 Construction Impeded 1 | . . . . . . . . . 1 . . . . . . . . . . . . . . . Haulers Reinforced 1 | . . . . . . . . . . . . . . 1 . . . . . . . . . . Active Scanning Responses . | . . . . . . . . . . . . . . . . . . . . . . . . . Cargo Convoy Interrupts 1 | . . . . . . . . . . . . . . . . . . . . . . . . 1 Stealth | -11 -10 -10 -9 -9 -9 -8 -8 -8 -7 -7 -7 -7 -6 -6 -6 -6 -6 -5 -5 -5 -5 -5 -4 -4 --------- Run | Yrd Mat Min Mat Min Exi Min Mat Sto Fac Low Low Zio Pro Fac Low Low Dat Pro Fac Upp Upp War Pro Fac Distress Signals 15 | . . . 4 . . . 2 . 1 . . . . 1 . . . . 2 . . . . 5 Communications Jammed 28 | . . . . . . . . . . . . . . . . . . . . . . . . 28 Distress Signals 19 | . . . . . . . . . . . . . . . . . . . . . . . . 19 Times Spotted 387 | . 11 5 37 2 36 7 21 15 43 4 8 . 8 14 11 14 . 6 45 8 7 27 3 55 Peak Tracking Total 14 | . 3 3 5 2 9 3 5 4 7 4 3 . 4 4 4 14 . 5 5 3 5 10 2 9 Tactical Retreats 32 | . 1 . 3 . 16 . 1 . 5 . . . . . 1 2 . 1 2 . . . . . Traps | -11 -10 -10 -9 -9 -9 -8 -8 -8 -7 -7 -7 -7 -6 -6 -6 -6 -6 -5 -5 -5 -5 -5 -4 -4 ------- Run | Yrd Mat Min Mat Min Exi Min Mat Sto Fac Low Low Zio Pro Fac Low Low Dat Pro Fac Upp Upp War Pro Fac Traps Triggered 4 | . . . . . . . . 1 2 . . . . . . . . . 1 . . . . . Indirectly . | . . . . . . . . . . . . . . . . . . . . . . . . . Trap Hack Attempts . | . . . . . . . . . . . . . . . . . . . . . . . . . Triggered . | . . . . . . . . . . . . . . . . . . . . . . . . . Disarmed . | . . . . . . . . . . . . . . . . . . . . . . . . . Reprogrammed . | . . . . . . . . . . . . . . . . . . . . . . . . . Reused . | . . . . . . . . . . . . . . . . . . . . . . . . . Traps Extracted . | . . . . . . . . . . . . . . . . . . . . . . . . . Installed . | . . . . . . . . . . . . . . . . . . . . . . . . . Triggered 6 | . . . . . . . . . . . . . . . . . . . . . . 6 . . Machines | -11 -10 -10 -9 -9 -9 -8 -8 -8 -7 -7 -7 -7 -6 -6 -6 -6 -6 -5 -5 -5 -5 -5 -4 -4 ---------- Run | Yrd Mat Min Mat Min Exi Min Mat Sto Fac Low Low Zio Pro Fac Low Low Dat Pro Fac Upp Upp War Pro Fac Machines Disabled 61 | . . . 1 . 11 . . 3 9 . . . . . . . . . 14 . . . . 23 Max in Single Turn 12 | . . . 1 . 2 . . 1 2 . . . . . . . . . 3 . . . . 12 Garrison Access 4 | . . . . . . . . 1 . . . . . 1 . . . . 2 . . . . . Machines Repaired . | . . . . . . . . . . . . . . . . . . . . . . . . . Machines Dismantled . | . . . . . . . . . . . . . . . . . . . . . . . . . Machines Sabotaged . | . . . . . . . . . . . . . . . . . . . . . . . . . Overloaded Fab Kills . | . . . . . . . . . . . . . . . . . . . . . . . . . Hacking | -11 -10 -10 -9 -9 -9 -8 -8 -8 -7 -7 -7 -7 -6 -6 -6 -6 -6 -5 -5 -5 -5 -5 -4 -4 --------- Run | Yrd Mat Min Mat Min Exi Min Mat Sto Fac Low Low Zio Pro Fac Low Low Dat Pro Fac Upp Upp War Pro Fac Machines Accessed 46 | . 5 . 5 . 1 . 1 4 8 . . . . 5 1 . 3 . 9 . 2 . . 2 Terminals 24 | . 5 . 5 . . . 1 3 1 . . . . 3 . . . . 5 . 1 . . . Fabricators 6 | . . . . . . . . . 3 . . . . . . . . . 2 . . . . 1 Repair Stations 3 | . . . . . . . . . 3 . . . . . . . . . . . . . . . Recycling Units . | . . . . . . . . . . . . . . . . . . . . . . . . . Scanalyzers 2 | . . . . . . . . . . . . . . 1 . . . . . . . . . 1 Garrison Access 5 | . . . . . . . . 1 1 . . . . 1 . . . . 2 . . . . . Total Hacks 160 | . 13 . 11 . 1 . 2 11 24 . . . . 12 1 . 27 . 34 . 12 . . 12 Successful 94 | . 6 . 2 . 1 . 1 6 11 . . . . 2 1 . 27 . 21 . 12 . . 4 Failed 66 | . 7 . 9 . . . 1 5 13 . . . . 10 . . . . 13 . . . . 8 Catastrophic 6 | . . . 3 . . . . . 2 . . . . . . . . . 1 . . . . . Database Lockouts . | . . . . . . . . . . . . . . . . . . . . . . . . . Manual 59 | . 12 . 11 . 1 . 2 2 6 . . . . 3 . . . . 21 . . 1 . . Terminals 79 | . 13 . 11 . . . 2 10 7 . . . . 8 . . . . 26 . 2 . . . Fabricators 18 | . . . . . . . . . 6 . . . . . . . . . 6 . . . . 6 Repair Stations 10 | . . . . . . . . . 10 . . . . . . . . . . . . . . . Recycling Units . | . . . . . . . . . . . . . . . . . . . . . . . . . Scanalyzers 9 | . . . . . . . . . . . . . . 3 . . . . . . . . . 6 Garrison Access 5 | . . . . . . . . 1 1 . . . . 1 . . . . 2 . . . . . Terminal Hacks 60 | . 3 . . . 1 . . 4 2 . . . . . 1 . 27 . 10 . 12 . . . Record 18 | . . . . . . . . . . . . . . . . . 6 . . . 12 . . . Part Schematic 16 | . . . . . . . . 2 . . . . . . . . 12 . 2 . . . . . Robot Schematic 6 | . . . . . . . . . . . . . . . . . 6 . . . . . . . Robot Analysis 2 | . 2 . . . . . . . . . . . . . . . . . . . . . . . Prototype ID Bank 5 | . . . . . . . . . . . . . . . . . 3 . 2 . . . . . Open Door 2 | . . . . . . . . 1 . . . . . . 1 . . . . . . . . . Branch Access Points 2 | . . . . . . . . . 1 . . . . . . . . . 1 . . . . . Terminal Index 1 | . . . . . . . . . . . . . . . . . . . 1 . . . . . Fabricator Index 1 | . . . . . . . . . . . . . . . . . . . 1 . . . . . Unreport Threat 2 | . . . . . . . . 1 1 . . . . . . . . . . . . . . . Locate Traps 1 | . . . . . . . . . . . . . . . . . . . 1 . . . . . Registered Components 1 | . 1 . . . . . . . . . . . . . . . . . . . . . . . Zone Layout 2 | . . . . . . . . . . . . . . . . . . . 2 . . . . . Derelict Proto ID Bank 1 | . . . . . 1 . . . . . . . . . . . . . . . . . . . Fabricator Hacks 7 | . . . . . . . . . 2 . . . . . . . . . 3 . . . . 2 Network Status 1 | . . . . . . . . . . . . . . . . . . . . . . . . 1 Load Schematic 5 | . . . . . . . . . 2 . . . . . . . . . 2 . . . . 1 Build 1 | . . . . . . . . . . . . . . . . . . . 1 . . . . . Repair Station Hacks 7 | . . . . . . . . . 7 . . . . . . . . . . . . . . . Scan Component 5 | . . . . . . . . . 5 . . . . . . . . . . . . . . . Repair 2 | . . . . . . . . . 2 . . . . . . . . . . . . . . . Recycling Unit Hacks . | . . . . . . . . . . . . . . . . . . . . . . . . . Scanalyzer 2 | . . . . . . . . . . . . . . . . . . . . . . . . 2 Insert Component 2 | . . . . . . . . . . . . . . . . . . . . . . . . 2 Garrison Access Hacks 4 | . . . . . . . . 1 . . . . . 1 . . . . 2 . . . . . Seal Access 4 | . . . . . . . . 1 . . . . . 1 . . . . 2 . . . . . Unauthorized Hacks 14 | . 3 . 2 . . . 1 1 . . . . . 1 . . . . 6 . . . . . Terminals 14 | . 3 . 2 . . . 1 1 . . . . . 1 . . . . 6 . . . . . Track 2 | . 1 . . . . . . . . . . . . . . . . . 1 . . . . . Botnet 11 | . 2 . 2 . . . 1 1 . . . . . 1 . . . . 4 . . . . . Operators 1 | . . . . . . . . . . . . . . . . . . . 1 . . . . . Fabricators . | . . . . . . . . . . . . . . . . . . . . . . . . . Repair Stations . | . . . . . . . . . . . . . . . . . . . . . . . . . Recycling Units . | . . . . . . . . . . . . . . . . . . . . . . . . . Scanalyzers . | . . . . . . . . . . . . . . . . . . . . . . . . . Garrison Access . | . . . . . . . . . . . . . . . . . . . . . . . . . Data Cores Recovered 1 | . . . . . . . . . . . . . . . . . . . 1 . . . . . Used . | . . . . . . . . . . . . . . . . . . . . . . . . . Hacking Detections 34 | . 5 . 5 . . . 1 2 8 . . . . 4 . . . . 7 . . . . 2 Full Trace Events 8 | . 1 . . . . . . . 2 . . . . 1 . . . . 3 . . . . 1 Feedback Events . | . . . . . . . . . . . . . . . . . . . . . . . . . Feedback Blocked . | . . . . . . . . . . . . . . . . . . . . . . . . . Robot Schematics Acquired 6 | . . . . . . . . . . . . . . . . . 6 . . . . . . . Robots Built . | . . . . . . . . . . . . . . . . . . . . . . . . . Authchips . | . . . . . . . . . . . . . . . . . . . . . . . . . Time . | . . . . . . . . . . . . . . . . . . . . . . . . . Total Robot Build Rating . | . . . . . . . . . . . . . . . . . . . . . . . . . Part Schematics Acquired 16 | . . . . . . . . 2 . . . . . . . . 12 . 2 . . . . . Parts Built 1 | . . . . . . . . . . . . . . . . . . . 1 . . . . . Authchips . | . . . . . . . . . . . . . . . . . . . . . . . . . Time 58 | . . . . . . . . . . . . . . . . . . . 58 . . . . . Total Part Build Rating 7 | . . . . . . . . . . . . . . . . . . . 7 . . . . . Parts Repaired 2 | . . . . . . . . . 2 . . . . . . . . . . . . . . . Time 58 | . . . . . . . . . 58 . . . . . . . . . . . . . . . Parts Recycled . | . . . . . . . . . . . . . . . . . . . . . . . . . Recycled Matter . | . . . . . . . . . . . . . . . . . . . . . . . . . Retrieved Matter . | . . . . . . . . . . . . . . . . . . . . . . . . . Retrieved Components . | . . . . . . . . . . . . . . . . . . . . . . . . . Parts Scanalyzed . | . . . . . . . . . . . . . . . . . . . . . . . . . Part Schematics Acquired . | . . . . . . . . . . . . . . . . . . . . . . . . . Parts Damaged . | . . . . . . . . . . . . . . . . . . . . . . . . . Bothacking | -11 -10 -10 -9 -9 -9 -8 -8 -8 -7 -7 -7 -7 -6 -6 -6 -6 -6 -5 -5 -5 -5 -5 -4 -4 ------------ Run | Yrd Mat Min Mat Min Exi Min Mat Sto Fac Low Low Zio Pro Fac Low Low Dat Pro Fac Upp Upp War Pro Fac Used RIF Installer . | . . . . . . . . . . . . . . . . . . . . . . . . . Robots Hacked . | . . . . . . . . . . . . . . . . . . . . . . . . . Non-combat . | . . . . . . . . . . . . . . . . . . . . . . . . . Combat . | . . . . . . . . . . . . . . . . . . . . . . . . . Robot Hacks Applied . | . . . . . . . . . . . . . . . . . . . . . . . . . Relay Couplers Released 3 | . . . . . . . . . . . . . . . . . . . . . . . . 3 Programmers 3 | . . . . . . . . . . . . . . . . . . . . . . . . 3 Fabnet Peak Effective % . | . . . . . . . . . . . . . . . . . . . . . . . . . Robots Rewired 7 | . . . . . . . . . . . . . . . . 2 . . . . . 5 . . Allies Hacked 1 | . . . . . . . . . . . . . . . . . . . . . . . . 1 Hacks Repelled . | . . . . . . . . . . . . . . . . . . . . . . . . . Allies | -11 -10 -10 -9 -9 -9 -8 -8 -8 -7 -7 -7 -7 -6 -6 -6 -6 -6 -5 -5 -5 -5 -5 -4 -4 -------- Run | Yrd Mat Min Mat Min Exi Min Mat Sto Fac Low Low Zio Pro Fac Low Low Dat Pro Fac Upp Upp War Pro Fac Total Allies 11 | . . 3 . . . . . . . . . . . . . 2 . 1 . . . 5 . . Largest Group 5 | . . 3 1 . . . . . . . . . . . . 2 2 2 1 . . 5 5 5 Highest-Rated Group 231 | . . 40 8 . . . . . . . . . . . . 61 61 96 96 . . 231 231 231 Highest-Rated Ally 96 | . . 16 8 . . . . . . . . . . . . 32 32 96 96 . . 49 49 49 Total Orders 3 | . . . . . . . . . . . . . . . . . . . . . . 3 . . STAY 2 | . . . . . . . . . . . . . . . . . . . . . . 2 . . FOLLOW 1 | . . . . . . . . . . . . . . . . . . . . . . 1 . . Ally Attacks 70 | . . 12 2 . . . . . . . . . . . . . . 9 4 . . 23 11 9 Total Damage 2157 | . . 142 12 . . . . . . . . . . . . . . 336 566 . . 683 231 187 Kills 17 | . . 1 . . . . . . . . . . . . . . . 2 4 . . 3 3 4 Allies Corrupted 2 | . . . . . . . . . . . . . . . . . . . . . . . . 2 Allies Melted 2 | . . 1 . . . . . . . . . . . . . . . . . . . 1 . . Intel | -11 -10 -10 -9 -9 -9 -8 -8 -8 -7 -7 -7 -7 -6 -6 -6 -6 -6 -5 -5 -5 -5 -5 -4 -4 ------- Run | Yrd Mat Min Mat Min Exi Min Mat Sto Fac Low Low Zio Pro Fac Low Low Dat Pro Fac Upp Upp War Pro Fac Robot Analysis Total 2 | . 2 . . . . . . . . . . . . . . . . . . . . . . . Derelict Logs Recovered 11 | . . 1 . . . . . . . 1 1 2 2 . 2 1 . . . . 1 . . . Drone Launches . | . . . . . . . . . . . . . . . . . . . . . . . . . Drone Recoveries . | . . . . . . . . . . . . . . . . . . . . . . . . . Exploration | -11 -10 -10 -9 -9 -9 -8 -8 -8 -7 -7 -7 -7 -6 -6 -6 -6 -6 -5 -5 -5 -5 -5 -4 -4 ------------- Run | Yrd Mat Min Mat Min Exi Min Mat Sto Fac Low Low Zio Pro Fac Low Low Dat Pro Fac Upp Upp War Pro Fac Turns Passed 30055 | . 1720 1458 2393 392 2623 949 849 869 2819 754 642 2293 833 1237 591 577 158 433 2382 1422 1282 1078 707 1594 Spaces Moved 11132 | 1 620 375 534 116 743 273 284 287 986 385 287 1191 403 492 286 264 83 191 1148 588 421 445 269 460 Core . | . . . . . . . . . . . . . . . . . . . . . . . . . Treads 5557 | . . . 108 116 743 273 284 287 903 . . . . . . . . . 660 588 421 445 269 460 Legs 5575 | 1 620 375 426 . . . . . 83 385 287 1191 403 492 286 264 83 191 488 . . . . . Wheels . | . . . . . . . . . . . . . . . . . . . . . . . . . Hover . | . . . . . . . . . . . . . . . . . . . . . . . . . Flight . | . . . . . . . . . . . . . . . . . . . . . . . . . Fastest Speed 120 | 120 120 260 320 320 320 320 240 240 190 193 192 122 197 192 192 192 192 192 120 173 173 173 256 246 Average Speed 236 | 120 256 380 383 320 320 320 240 240 235 193 192 191 197 194 192 201 192 208 164 216 252 199 256 257 Slowest Speed 400 | 120 260 400 400 320 320 320 240 240 320 193 193 197 197 197 192 263 192 262 256 256 256 256 256 325 Overloaded Moves . | . . . . . . . . . . . . . . . . . . . . . . . . . Propulsion Burnouts . | . . . . . . . . . . . . . . . . . . . . . . . . . Robots Hopped . | . . . . . . . . . . . . . . . . . . . . . . . . . Cave-ins Triggered . | . . . . . . . . . . . . . . . . . . . . . . . . . Exploration Rate (%) 52 | 2 95 81 51 28 90 71 30 67 26 71 53 84 51 9 46 51 69 41 30 62 67 62 49 18 Regions Visited 24 Branch Regions 17 Pre-discovered Areas 7 | . . . . . . . . . . . . 2 . . 1 1 1 . . . 2 . . . Known Exits Taken 16 | . . . 1 . . . . . 1 1 1 1 1 1 1 1 1 1 1 1 1 1 1 . Unknown Exits Taken 8 | 1 1 1 . 1 1 1 1 1 . . . . . . . . . . . . . . . . Scrap Searched 19 | . . 2 . . . 1 . . . 2 . 2 4 . 2 1 . 1 . 2 1 . 1 . Spaces Dug 77 | . . . . . . . . 19 . . . . 2 15 . . . . 6 . 23 1 . 11 Terrain Destroyed 1037 | . . . . . 29 . 12 20 66 29 69 . 141 21 12 95 . 64 105 106 106 3 14 145 Melee 34 | . . . . . . . . . . . . . 2 14 . . . . 6 . . 1 . 11 Projectile 101 | . . . . . 9 . 1 1 2 . 2 . . 7 12 7 . . 22 9 1 1 . 27 AOE 897 | . . . . . 18 . 11 19 63 29 67 . 139 . . 88 . 64 76 97 105 . 14 107 Terrain Rammed . | . . . . . . . . . . . . . . . . . . . . . . . . . Walls Destroyed . | . . . . . . . . . . . . . . . . . . . . . . . . . Machines Disabled . | . . . . . . . . . . . . . . . . . . . . . . . . . Actions | -11 -10 -10 -9 -9 -9 -8 -8 -8 -7 -7 -7 -7 -6 -6 -6 -6 -6 -5 -5 -5 -5 -5 -4 -4 --------- Run | Yrd Mat Min Mat Min Exi Min Mat Sto Fac Low Low Zio Pro Fac Low Low Dat Pro Fac Upp Upp War Pro Fac Total 13623 | . 703 393 718 124 916 307 366 373 1298 392 351 1210 423 675 322 301 82 218 1490 716 629 611 286 719 Wait 1235 | . 26 4 56 2 56 7 27 19 171 . 48 . 6 88 21 4 . 18 165 109 196 82 10 120 Move 11108 | . 619 374 533 115 742 272 283 286 985 384 286 1190 402 491 285 263 82 190 1147 587 420 444 268 460 Hop . | . . . . . . . . . . . . . . . . . . . . . . . . . Pick Up 128 | . 18 1 16 . 23 . 5 3 12 1 . 3 . 6 3 . . . 22 3 1 4 1 6 Fast Attach 74 | . 3 1 6 . 4 . 1 4 9 . 2 5 1 3 1 2 . 1 15 . . 10 2 4 Attach 48 | . . . 5 . 7 . 2 . 6 . . 1 . 5 . 1 . 5 7 . 1 . . 8 Detach 12 | . 1 1 3 . . . . . . . . . . 2 . 1 . . 1 . . 1 . 2 Swap 154 | . 2 3 2 1 3 4 2 6 11 5 5 2 3 5 2 2 . . 28 7 4 10 . 47 Drop 164 | . 8 1 18 . 27 2 5 10 18 1 1 9 1 5 3 . . . 30 . 1 15 3 6 Fire 533 | . 25 8 77 4 36 13 38 42 81 1 9 . 8 33 . 4 . 4 58 10 6 19 2 55 Melee 102 | . . . . . 18 5 . . . . . . 2 37 7 . . . 17 . . 5 . 11 Ram . | . . . . . . . . . . . . . . . . . . . . . . . . . Kick 3 | . 1 . 1 . . . . . 1 . . . . . . . . . . . . . . . Crush 15 | . . . 1 2 . 4 3 3 2 . . . . . . . . . . . . . . . Escape Stasis 2 | . . . . . . . . . 2 . . . . . . . . . . . . . . . Rewire 45 | . . . . . . . . . . . . . . . . 24 . . . . . 21 . . Trap . | . . . . . . . . . . . . . . . . . . . . . . . . . Miscellaneous . | . . . . . . . . . . . . . . . . . . . . . . . . . Route ------- -11/Scrapyard -10/Materials (discovered 5 exits: *Mat x3 / [*Min x2]) -10/Mines -9/Materials (discovered 3 exits: *Mat / *Min x2) -9/Mines -9/Exiles -8/Mines -8/Materials (discovered 2 exits: *Fac / *Sto) -8/Storage -7/Factory (discovered 2 exits: *Low x2) -7/Lower Caves -7/Lower Caves -7/Zion -6/Proximity Caves -6/Factory (discovered 2 exits: *Low x2) -6/Lower Caves -6/Lower Caves -6/Data Miner -5/Proximity Caves -5/Factory (discovered 5 exits: *Fac x3 / *Upp x2) -5/Upper Caves -5/Upper Caves (discovered 2 exits: *Fac / *War) -5/Warlord -4/Proximity Caves -4/Factory (discovered 1 exit: [Arm]) History --------- Turn | Location | Event 1 | -11/Scrapyard | Discovered new exit (range 0) 1 | -11/Scrapyard | Entered Materials 153 | -10/Materials | Discovered new exit (range 5) 311 | -10/Materials | Build established: Mutant 383 | -10/Materials | Discovered new exit (range 6) 719 | -10/Materials | Discovered new exit (range 15) 791 | -10/Materials | Discovered new exit (range 10) 1102 | -10/Materials | Discovered new exit (range 3) 1721 | -10/Materials | Entered Mines 2492 | -10/Mines | Assisted by bots powering up and referring to "LRC-V3" 2791 | -10/Mines | Learned 8 Materials zone layouts 2980 | -10/Mines | Build established: Scavenger-Mutant 3123 | -10/Mines | Discovered new exit (range 10) 3179 | -10/Mines | Entered Materials 3179 | -9/Materials | Accompanied by 1 ally 3179 | -9/Materials | Evolved 2 slots: Weapon x2 3180 | -9/Materials | Identified exit to Mines 3867 | -9/Materials | Discovered new exit (range 16) 5409 | -9/Materials | Build established: Gunner 5572 | -9/Materials | Entered Mines 5582 | -9/Mines | Met a Derelict bent on vengeance 5798 | -9/Mines | Build established: Scavenger-Gunner 5950 | -9/Mines | Deemed a non-threat by the Exiles lab entrance 5950 | -9/Mines | Discovered new exit (range 5) 5964 | -9/Mines | Entered Exiles 6049 | -9/Exiles | Met 8R-AWN 6103 | -9/Exiles | Met EX-HEX 6187 | -9/Exiles | Met EX-BIN 6231 | -9/Exiles | Aligned with FarCom system 6235 | -9/Exiles | Given EX-Vault access code 6308 | -9/Exiles | Opened EX-Vault 6325 | -9/Exiles | Found Longsword +1 6393 | -9/Exiles | Warned to stay clear of 0b10 Research branches 6476 | -9/Exiles | Met EX-DEC 6838 | -9/Exiles | Attacked by the Exiles 6905 | -9/Exiles | Build established: Gunner 6995 | -9/Exiles | Found Prototype Ballistic Gun 6995 | -9/Exiles | Identified 8R-AWN's Boregun 7000 | -9/Exiles | Found 8R-AWN's Boregun 7173 | -9/Exiles | Found Prototype Device 7173 | -9/Exiles | Identified AS-neutralizer No. 17b 7330 | -9/Exiles | Destroyed 8R-AWN 7339 | -9/Exiles | Found Prototype Processor 7339 | -9/Exiles | Identified Exp. Targeting Computer 7365 | -9/Exiles | Destroyed EX-HEX 7394 | -9/Exiles | Destroyed EX-DEC 7470 | -9/Exiles | Found Deploy-a-Sentry 7539 | -9/Exiles | Destroyed EX-BIN 7764 | -9/Exiles | Found Prototype Protection 8027 | -9/Exiles | Found Superbattery 8038 | -9/Exiles | Found AWS/Autocannon 8552 | -9/Exiles | Discovered new exit (range 14) 8587 | -9/Exiles | Stole four prototypes: Longsword +1, Superbattery, AWS/Autocannon, Deploy-a-Sentry 8587 | -9/Exiles | Entered Mines 9447 | -8/Mines | Core integrity fell below 50% 9482 | -8/Mines | Discovered new exit (range 8) 9536 | -8/Mines | Entered Materials 9536 | -8/Materials | Evolved 2 slots: Propulsion x2 10087 | -8/Materials | Discovered new exit (range 14) 10310 | -8/Materials | Discovered new exit (range 6) 10385 | -8/Materials | Entered Storage 10459 | -8/Storage | Build established: Scavenger-Gunner 11237 | -8/Storage | Discovered new exit (range 7) 11254 | -8/Storage | Entered Factory 11254 | -7/Factory | Evolved 2 slots: Utility x2 11568 | -7/Factory | Build established: Scavenger-Skirmisher 12012 | -7/Factory | Garrison activated, responded to threat 12119 | -7/Factory | Garrison activated, responded to threat 12264 | -7/Factory | Repaired Lgt. Treads 12593 | -7/Factory | Found Prototype Launcher 12593 | -7/Factory | Identified Rocket Array 12606 | -7/Factory | Found Rocket Array 12623 | -7/Factory | Build established: Scavenger-Gunner 12730 | -7/Factory | Repaired Imp. Treads 12901 | -7/Factory | Garrison activated, responded to threat 13304 | -7/Factory | Garrison activated, responded to threat 13426 | -7/Factory | Identified exit to Lower Caves 13755 | -7/Factory | Build established: Scavenger-Skirmisher 14054 | -7/Factory | First assault squad dispatched 14073 | -7/Factory | Entered Lower Caves 14177 | -7/Lower Caves | Learned Factory stockpile data 14802 | -7/Lower Caves | Discovered new exit (range 13) 14823 | -7/Lower Caves | Identified exit to Lower Caves 14827 | -7/Lower Caves | Entered another Lower Caves area 14880 | -7/Lower Caves | Learned 4 Factory zone layouts 14894 | -7/Lower Caves | Spotted B-75 Beast 15453 | -7/Lower Caves | Discovered new exit (range 8) 15467 | -7/Lower Caves | Identified exit to Zion 15469 | -7/Lower Caves | Entered Zion 15520 | -7/Zion | System corruption cleaned by Quarantine Array 15650 | -7/Zion | Discovered new exit (range 15) 15652 | -7/Zion | Given A8's code to call for help 16039 | -7/Zion | Learned location of Quarantine (-2) 16160 | -7/Zion | Learned location of Warlord (-5) 16516 | -7/Zion | Learned Factory emergency access door positions 16561 | -7/Zion | Learned Factory stockpile data 17011 | -7/Zion | Received a hallucinogenic algorithm 17558 | -7/Zion | Found Prototype Processor 17561 | -7/Zion | Found Prototype Processor 17760 | -7/Zion | Identified exit to Proximity Caves 17762 | -7/Zion | Entered Proximity Caves 18366 | -6/Proximity Caves | Learned location of 1 exit from Factory 18505 | -6/Proximity Caves | Learned Factory terminal intel 18551 | -6/Proximity Caves | Discovered new exit (range 16) 18586 | -6/Proximity Caves | Identified exit to Factory 18595 | -6/Proximity Caves | Entered Factory 18595 | -6/Factory | Evolved 2 slots: Utility x2 18596 | -6/Factory | Identified exit to Lower Caves 18600 | -6/Factory | Loaded intel: 26 terminal locations 18906 | -6/Factory | Build established: Scavenger-Assassin 19095 | -6/Factory | Lost 3 parts (1n2w) 19567 | -6/Factory | Discovered exit to Lower Caves (range 6) 19682 | -6/Factory | Build established: Scavenger-Skirmisher 19832 | -6/Factory | Entered Lower Caves 19880 | -6/Lower Caves | Spotted B-75 Beast 19892 | -6/Lower Caves | Destroyed B-75 Beast 20208 | -6/Lower Caves | Build established: Tank 20371 | -6/Lower Caves | Learned Factory terminal intel 20403 | -6/Lower Caves | Discovered new exit (range 4) 20419 | -6/Lower Caves | Identified exit to Lower Caves 20423 | -6/Lower Caves | Entered another Lower Caves area 20423 | -6/Lower Caves | Spotted PY-D9D(f) 20423 | -6/Lower Caves | Spotted E1-02R(f) 20424 | -6/Lower Caves | AWS/Autocannon stolen by Master Thief 20425 | -6/Lower Caves | Encountered a Master Thief 20425 | -6/Lower Caves | Encountered a Master Thief 20425 | -6/Lower Caves | Destroyed E1-02R(f) 20426 | -6/Lower Caves | Longsword +1 stolen by Master Thief 20428 | -6/Lower Caves | Destroyed PY-D9D(f) 20765 | -6/Lower Caves | Spotted B-75 Beast 20816 | -6/Lower Caves | Attracted the attention of an 0b10 outpost 20848 | -6/Lower Caves | Destroyed 9 combat bots 20866 | -6/Lower Caves | Lost 3 parts (1n2u) 20942 | -6/Lower Caves | Discovered new exit (range 11) 20958 | -6/Lower Caves | Identified exit to Data Miner 21000 | -6/Lower Caves | Entered Data Miner 21000 | -6/Data Miner | Accompanied by 2 allies 21000 | -6/Data Miner | Discovered new exit (range 6) 21037 | -6/Data Miner | Met Data Miner 21087 | -6/Data Miner | Learned location of Section 7 (-2) 21087 | -6/Data Miner | Acquired the access code to Warlord's prototype stash 21093 | -6/Data Miner | Build established: Gunner 21102 | -6/Data Miner | Received God Mode back door access code from Data Miner 21152 | -6/Data Miner | Identified exit to Proximity Caves 21158 | -6/Data Miner | Entered Proximity Caves 21158 | -5/Proximity Caves | Accompanied by 2 allies 21219 | -5/Proximity Caves | Spotted B-75 Beast 21394 | -5/Proximity Caves | Escorted by Enhanced Grunt 21426 | -5/Proximity Caves | Lost 3 parts (1p1u1w) 21564 | -5/Proximity Caves | Discovered new exit (range 10) 21578 | -5/Proximity Caves | Identified exit to Factory 21591 | -5/Proximity Caves | Entered Factory 21591 | -5/Factory | Accompanied by 1 ally 21591 | -5/Factory | Evolved 2 slots: Utility x2 21593 | -5/Factory | Loaded intel: 26 terminal locations 21840 | -5/Factory | Identified Exp. Target Analyzer 21841 | -5/Factory | Identified Exp. Signal Interpreter 21860 | -5/Factory | Identified exit to Upper Caves 22247 | -5/Factory | Build established: Scavenger-Gunner 22413 | -5/Factory | Fabricated Hvy. Siege Treads (x1) 22725 | -5/Factory | Discovered new exit (range 8) 22759 | -5/Factory | Identified exit to Factory 22910 | -5/Factory | Discovered exit to Factory (range 7) 23081 | -5/Factory | Build established: Mutant 23387 | -5/Factory | Build established: Gunner 23391 | -5/Factory | First assault squad dispatched 23612 | -5/Factory | Discovered exit to Factory (range 6) 23896 | -5/Factory | Found Hvy. Reactive Plating 23973 | -5/Factory | Entered Upper Caves 23973 | -5/Upper Caves | Spotted GL-8H5(f) 23973 | -5/Upper Caves | Spotted 3V-DO5(f) 23974 | -5/Upper Caves | Superbattery stolen by Master Thief 23974 | -5/Upper Caves | Deploy-a-Sentry stolen by Master Thief 23975 | -5/Upper Caves | Encountered a Master Thief 23975 | -5/Upper Caves | Encountered a Master Thief 23988 | -5/Upper Caves | Spotted TZ-B6I(f) 23989 | -5/Upper Caves | Encountered a Master Thief 23994 | -5/Upper Caves | Longsword +1 stolen by Master Thief 23998 | -5/Upper Caves | Destroyed TZ-B6I(f) 24790 | -5/Upper Caves | Attracted the attention of an 0b10 checkpoint 25379 | -5/Upper Caves | Discovered new exit (range 4) 25382 | -5/Upper Caves | Identified exit to Upper Caves 25395 | -5/Upper Caves | Entered another Upper Caves area 25668 | -5/Upper Caves | Discovered exit to Factory (range 5) 26079 | -5/Upper Caves | Learned location of Armory (-4) 26079 | -5/Upper Caves | Learned Extension trap positions 26079 | -5/Upper Caves | Learned Factory stockpile data 26079 | -5/Upper Caves | Learned Factory security intel 26079 | -5/Upper Caves | Learned Armory terminal intel 26159 | -5/Upper Caves | Identified exit to Warlord 26624 | -5/Upper Caves | Spotted XJ-2RJ(f) 26625 | -5/Upper Caves | Encountered a Master Thief 26625 | -5/Upper Caves | Encountered a Master Thief 26625 | -5/Upper Caves | Spotted O0-EV1(f) 26625 | -5/Upper Caves | Spotted B8-KZP(f) 26626 | -5/Upper Caves | Encountered a Master Thief 26628 | -5/Upper Caves | Destroyed B8-KZP(f) 26628 | -5/Upper Caves | Destroyed XJ-2RJ(f) 26629 | -5/Upper Caves | Longsword +1 stolen by Master Thief 26633 | -5/Upper Caves | Destroyed O0-EV1(f) 26658 | -5/Upper Caves | Destroyed 7 combat bots 26677 | -5/Upper Caves | Entered Warlord 27193 | -5/Warlord | Met Warlord 27210 | -5/Warlord | Opened Warlord's prototype stash 27218 | -5/Warlord | Warlord's base attacked by MAIN.C 27227 | -5/Warlord | Found Prototype Device 27227 | -5/Warlord | Identified Exp. Phase Shifter 27238 | -5/Warlord | Found Prototype Processor 27238 | -5/Warlord | Identified Exp. Core Analyzer 27263 | -5/Warlord | Found Prototype Reactor 27279 | -5/Warlord | Found Prototype Hackware 27448 | -5/Warlord | Build established: Commander-Gunner 27493 | -5/Warlord | Destroyed 7 combat bots 27568 | -5/Warlord | Warlord forces counterattacked 27606 | -5/Warlord | Spotted Striker 27615 | -5/Warlord | Spotted Executioner 27627 | -5/Warlord | Destroyed Executioner 27642 | -5/Warlord | Lost 6 allies 27653 | -5/Warlord | Spotted B-75 Beast 27656 | -5/Warlord | Spotted Striker 27659 | -5/Warlord | Spotted B-86 Titan 27669 | -5/Warlord | Allies destroyed B-86 Titan 27726 | -5/Warlord | Discovered new exit (range 12) 27749 | -5/Warlord | Identified exit to Proximity Caves 27755 | -5/Warlord | Entered Proximity Caves 27755 | -4/Proximity Caves | Accompanied by 5 allies 27770 | -4/Proximity Caves | Lost 7 allies 27834 | -4/Proximity Caves | Spotter reported a threat 27834 | -4/Proximity Caves | Spotter reported a threat 27903 | -4/Proximity Caves | Spotter reported a threat 27992 | -4/Proximity Caves | Build established: Scavenger-Gunner 28283 | -4/Proximity Caves | Discovered exit to Factory (range 14) 28462 | -4/Proximity Caves | Entered Factory 28462 | -4/Factory | Accompanied by 5 allies 28462 | -4/Factory | Evolved 2 slots: Power x1, Utility x1 28743 | -4/Factory | Search patrols dispatched 28813 | -4/Factory | P-70 Sage assimilated allied Disruptor 6b 28983 | -4/Factory | Identified Ghost Barrier 28983 | -4/Factory | Identified Vortex Chain Reactor 29016 | -4/Factory | Discovered new exit (range 17) 29695 | -4/Factory | Cargo convoy interrupted 29698 | -4/Factory | Spotted Striker 29698 | -4/Factory | Destroyed Striker 29704 | -4/Factory | Destroyed Striker 29768 | -4/Factory | Destroyed 20 combat bots 29981 | -4/Factory | Lost 4 parts (1p1n2u) 29989 | -4/Factory | Spotted B-86 Titan 30007 | -4/Factory | First assault squad dispatched 30043 | -4/Factory | Core integrity fell below 50% 30055 | -4/Factory | Core integrity fell below 20% 30056 | -4/Factory | Destroyed by H-71 Marshal with Heavy Mass Driver Last Messages --------------- 30047_ U-05 Engineer lays Concrete. 30047_ KE Penetrator destroyed. 30047_ Penetrated by Slug. 30048_ Acquired Railgun. 30049_ U-05 Engineer lays Concrete. 30051_ Power failure, Vortex Chain Reactor shutdown. 30051_ Railgun destroyed. 30051_ U-05 Engineer lays Concrete. 30053_ K-01 Serf collects debris. 30053_ U-05 Engineer lays Concrete. 30054_ Arm. Medium Treads broken. 30054_ Overheating: Short circuit. 30054_ The unstable cave ceiling collapses. 30054_ Knocked back. 30054_ Penetrated by Slug. 30054_ U-05 Engineer lays Concrete. 30054_ Knocked back. 30055_ Overheating: Imp. Transmission Jammer damaged (-4). 30055_ U-05 Engineer lays Concrete. 30056_ Overheating: Core damaged (-195). Map ----- +----------------------------------------------------+ | ?????????????????????????????????????????????????? | | ?????????????????????????????????????????????????? | | ??????????? ??? ??? ? ??????????????????????????? | | ???????????#????? ?? ?? ?????????????????????????? | | ???????#??#?????? ??? ? ? ??????????????????????? | | ???????#????#??#? ??#?? ???????????????????????? | | ?????????#???#?? #?? ?? ?????????????????? | | ?????????#??#?#? ? ###?#?#?##?##???????????????? | | ??? ?? ?? ? ?###?#########? ??????????????? | | ?????? ? ??##########?### ? ? ????????????? | | ??? ?? ? ??###?######?### ? ???????????? | | ?# ????? ? ??### #? ?? ??? ??????????? | | ?#???? ? ?#### """" #??? ? ??#????????? | | ?# ###?# """" # ? ?? ?? ##???????? | | ?# ##### """" #? ? ? ? ?? ???????? | | # ##### """" #??? ??? ?? ??????? | | # ##### # +? ??????? | | # ##### = # ? #? ??????? | | # ####; ! #? ? ? # ??????? | | # # ; # ??? # ?????? | | """""""###;;;==!!;;##+########## %"" !?????? | | ! =*= !* % %* ????? | | H k [==%* % = =! ! "?????? | | %![= %%*! ! ===[BB! "?????? | | % [*! %==[!%]! BB ????? | | ! %!@%!!!! = % ????? | | %%##;;! ## # ####????? | | %%##?#### ? #????? | | u ###?### ? ? ? ?????? | | ####### """ ?""? ?#????? | | u ###?#?# "?" ?"? ??????? | | ######? """ """ ??????? | | ####### ?? ? ??????? | | ## ######+##;;;"#########?????"?" ??????? | | # " "# " ####?#### """ """?? ??????? | | ###" """ ## ###########?""" "?"? ???????? | | ########### ########### ? ? ???????? | | ########### ########?## ? ? ? ? ???????? | | ########### """"" = ########### ?? ????????? | | ####?###### """"" ############???###??????????? | | ########### """ #######?######??##??????????? | | ########### ######??#####?###???????????? | | ########################?##?###?#?#?????????????? | | #?##########################?##?#???????????????? | | #############################?#?????????????????? | | ########?##?####?##???###??#????????????????????? | | ################?#??##??#?##?????????????????????? | | ###############?##???###?????????????????????????? | | #??##############?##?###?????????????????????????? | | ##########?######?#?#?#??????????????????????????? | +----------------------------------------------------+ Best States ------------- Heat Dissipation 74 Energy Generation 55 Energy Capacity 700 Matter Stores 300 Matter Capacity 300 Sight Range 16 Robot Scan Range 16 Terrain Scan Range 20 Terrain Scan Density 210 Jamming Range 14 Armor Coverage 600 Resistance: TH 10 Weapon Shielding 66 Phase Shifting 20 Evasion (%) 60 Targeting Accuracy 12 Target Analysis 10 Core Analysis 11 Recoil Reduction 9 Offensive Hacking 14 Item Schematics ----------------- Adv. Sensor Array | -8/Storage | Hacked Hrd. Heavy Armor Plating | -8/Storage | Hacked Combat Drone Bay | -6/Data Miner | Free Lgt. Regenerative Plating | -6/Data Miner | Free Cld. Nuclear Pulse Thruster | -6/Data Miner | Free Imp. Energy Well | -6/Data Miner | Free Imp. KE Penetrator | -6/Data Miner | Free Imp. Linear Gravjet | -6/Data Miner | Free Adv. Reaction Control System | -6/Data Miner | Free Dispersion Rifle | -6/Data Miner | Free Recoil Nullifier | -6/Data Miner | Free Hvy. Siege Treads | -6/Data Miner | Free Graphene Brace | -6/Data Miner | Free Adv. Corruption Screen | -6/Data Miner | Free Hvy. Treads | -5/Factory | Hacked Hyp. Coil Gun | -5/Factory | Hacked Robot Schematics ------------------ R-10 Processor | -6/Data Miner | Free S-27 Virus | -6/Data Miner | Free H-66 Slayer | -6/Data Miner | Free G-50 Soldier | -6/Data Miner | Free G-67 Veteran | -6/Data Miner | Free H-77 Assassin | -6/Data Miner | Free Fabricated ------------ Hvy. Siege Treads | x1 | -5/Factory Alien Tech Used ----------------- None Achievements -------------- None Challenges ------------ None Game ------ Seed PointWeaponDoomcannon Manual? 0 Play Time 02:18:28 Cumulative 227.5 hours Start 2024.05.17 @ 20:55:53 End 2024.05.19 @ 16:13:01 Sessions 9 Manual Loads 0 Difficulty Rogue Special Mode None Game No. 287 Rogue 287 Adventurer 0 Explorer 0 Win Type - Total 8 Types 4/1/0/1/1/0/0/1/0 Lore% 72 Gallery% 80 Achievement% 69 Wizard Run 0 Options --------- Layout 0 ASCII 0 Keyboard 0 Movement Numpad Keybinds 0 Fullscreen 1 Font 18/SmallcapsGlow Map View 76x50 Zoom Use 0% Tactical HUD 1 Map Filters NONE Filters NONE Steam 1 RUN: 5a2399ec-55d9-4a2c-a597-6edd1c81aced